[Event "Titled Tuesday Blitz May 9 Late 2023"]
[White "Vega Gutierrez, Sabrina"]
[Black "Brueckner, Thomas"]
[WhiteFideId "2219026"]
[BlackFideId "4600452"]
[WhiteElo "2209"]
[BlackElo "2322"]
[Result "1-0"]
[Round "10"]
[TimeControl "180+2"]
[Date "2023.05.09"]
[WhiteClock "0:00:21"]
[BlackClock "0:00:00"]

1. e4 {[%clk 0:03:00]}  e5 {[%clk 0:02:59]} 2. Nf3 {[%clk 0:03:01]}  Nc6 {[%clk 0:02:59]} 3. Nc3 {[%clk 0:03:01]}  Nf6 {[%clk 0:02:58]} 4. g3 {[%clk 0:03:02]}  d5 {[%clk 0:02:52]} 5. exd5 {[%clk 0:03:02]}  Nxd5 {[%clk 0:02:52]} 6. Bg2 {[%clk 0:03:03]}  Nxc3 {[%clk 0:02:48]} 7. bxc3 {[%clk 0:03:04]}  Bc5 {[%clk 0:02:43]} 8. O-O {[%clk 0:03:04]}  O-O {[%clk 0:02:43]} 9. d3 {[%clk 0:02:55]}  f6 {[%clk 0:02:38]} 10. Rb1 {[%clk 0:02:39]}  Be6 {[%clk 0:02:34]} 11. c4 {[%clk 0:02:27]}  Qd7 {[%clk 0:02:25]} 12. Nd2 {[%clk 0:02:24]}  Rab8 {[%clk 0:02:11]} 13. Ne4 {[%clk 0:02:19]}  Be7 {[%clk 0:02:11]} 14. Be3 {[%clk 0:02:16]}  Rfd8 {[%clk 0:02:02]} 15. Nc5 {[%clk 0:02:09]}  Bxc5 {[%clk 0:01:59]} 16. Bxc5 {[%clk 0:02:10]}  b6 {[%clk 0:01:59]} 17. Be3 {[%clk 0:02:09]}  Nd4 {[%clk 0:01:57]} 18. f4 {[%clk 0:02:03]}  Nf5 {[%clk 0:01:20]} 19. Bd2 {[%clk 0:01:47]}  Qd4+ {[%clk 0:01:15]} 20. Kh1 {[%clk 0:01:48]}  exf4 {[%clk 0:00:47]} 21. Rxf4 {[%clk 0:01:46]}  Qd7 {[%clk 0:00:33]} 22. Be4 {[%clk 0:01:35]}  Nd6 {[%clk 0:00:28]} 23. Bd5 {[%clk 0:00:57]}  Nf7 {[%clk 0:00:19]} 24. Bg2 {[%clk 0:00:54]}  Ne5 {[%clk 0:00:17]} 25. Bc3 {[%clk 0:00:37]}  Nxc4 {[%clk 0:00:14]} 26. Qe2 {[%clk 0:00:38]}  Nd6 {[%clk 0:00:05]} 27. Rbf1 {[%clk 0:00:37]}  Nb5 {[%clk 0:00:04]} 28. Bb2 {[%clk 0:00:30]}  Bd5 {[%clk 0:00:04]} 29. a4 {[%clk 0:00:23]}  Bxg2+ {[%clk 0:00:03]} 30. Qxg2 {[%clk 0:00:24]}  Nd6 {[%clk 0:00:01]} 31. Qd5+ {[%clk 0:00:22]}  Qf7 {[%clk 0:00:00]} 32. Qc6 {[%clk 0:00:21]} 1-0


[Site "https://www.chess.com"]

[Event "Titled Tuesday Blitz May 9 Late 2023"]
[White "De Souza, Cristiano Gomes"]
[Black "merinasian"]
[WhiteFideId "2151758"]
[WhiteElo "2068"]
[BlackElo "2413"]
[Result "0-1"]
[Round "10"]
[TimeControl "180+2"]
[Date "2023.05.09"]
[WhiteClock "0:01:19"]
[BlackClock "0:02:26"]

1. d4 {[%clk 0:01:43]}  Nf6 {[%clk 0:02:59]} 2. c4 {[%clk 0:01:44]}  e6 {[%clk 0:02:59]} 3. Nf3 {[%clk 0:01:44]}  b6 {[%clk 0:02:59]} 4. g3 {[%clk 0:01:44]}  Bb7 {[%clk 0:03:00]} 5. Bg2 {[%clk 0:01:43]}  Bb4+ {[%clk 0:02:58]} 6. Bd2 {[%clk 0:01:43]}  Be7 {[%clk 0:02:56]} 7. O-O {[%clk 0:01:43]}  Ne4 {[%clk 0:02:56]} 8. Be1 {[%clk 0:01:42]}  d6 {[%clk 0:02:53]} 9. Nc3 {[%clk 0:01:42]}  Nxc3 {[%clk 0:02:52]} 10. Bxc3 {[%clk 0:01:43]}  Nd7 {[%clk 0:02:52]} 11. b4 {[%clk 0:01:42]}  Nf6 {[%clk 0:02:46]} 12. Nd2 {[%clk 0:01:40]}  Bxg2 {[%clk 0:02:45]} 13. Kxg2 {[%clk 0:01:41]}  d5 {[%clk 0:02:44]} 14. c5 {[%clk 0:01:40]}  bxc5 {[%clk 0:02:42]} 15. b5 {[%clk 0:01:40]}  c4 {[%clk 0:02:36]} 16. a4 {[%clk 0:01:39]}  O-O {[%clk 0:02:36]} 17. Qc2 {[%clk 0:01:35]}  c5 {[%clk 0:02:30]} 18. e4 {[%clk 0:01:33]}  cxd4 {[%clk 0:02:28]} 19. Bxd4 {[%clk 0:01:33]}  dxe4 {[%clk 0:02:27]} 20. Nxe4 {[%clk 0:01:19]}  Qxd4 {[%clk 0:02:26]} 0-1


[Site "https://www.chess.com"]

[Event "Titled Tuesday Blitz May 9 Late 2023"]
[White "K2JW"]
[Black "KVAIDAN"]
[WhiteElo "2387"]
[BlackElo "2296"]
[Result "0-1"]
[Round "10"]
[TimeControl "180+2"]
[Date "2023.05.09"]
[WhiteClock "0:00:18"]
[BlackClock "0:01:51"]

1. e4 {[%clk 0:03:00]}  e5 {[%clk 0:02:56]} 2. Nf3 {[%clk 0:03:00]}  d5 {[%clk 0:02:56]} 3. d4 {[%clk 0:02:46]}  dxe4 {[%clk 0:02:54]} 4. Nxe5 {[%clk 0:02:46]}  Bd6 {[%clk 0:02:55]} 5. Nc4 {[%clk 0:02:41]}  Nf6 {[%clk 0:02:54]} 6. Nxd6+ {[%clk 0:02:26]}  Qxd6 {[%clk 0:02:54]} 7. Be2 {[%clk 0:02:10]}  Nc6 {[%clk 0:02:53]} 8. c3 {[%clk 0:02:09]}  O-O {[%clk 0:02:52]} 9. Na3 {[%clk 0:02:02]}  Nd5 {[%clk 0:02:49]} 10. Nc4 {[%clk 0:01:54]}  Qg6 {[%clk 0:02:47]} 11. g3 {[%clk 0:01:45]}  f5 {[%clk 0:02:46]} 12. Ne3 {[%clk 0:01:43]}  Nce7 {[%clk 0:02:42]} 13. Nxd5 {[%clk 0:01:33]}  Nxd5 {[%clk 0:02:41]} 14. Bc4 {[%clk 0:01:28]}  c6 {[%clk 0:02:40]} 15. Bxd5+ {[%clk 0:01:26]}  cxd5 {[%clk 0:02:40]} 16. Bf4 {[%clk 0:01:23]}  Be6 {[%clk 0:02:33]} 17. O-O {[%clk 0:01:20]}  Qf6 {[%clk 0:02:18]} 18. f3 {[%clk 0:01:09]}  g5 {[%clk 0:02:16]} 19. Be5 {[%clk 0:01:08]}  Qg6 {[%clk 0:02:16]} 20. f4 {[%clk 0:00:57]}  h6 {[%clk 0:02:11]} 21. Qe2 {[%clk 0:00:49]}  a6 {[%clk 0:02:11]} 22. c4 {[%clk 0:00:40]}  dxc4 {[%clk 0:02:09]} 23. d5 {[%clk 0:00:41]}  Bxd5 {[%clk 0:02:08]} 24. Rad1 {[%clk 0:00:40]}  Rad8 {[%clk 0:02:07]} 25. Qe3 {[%clk 0:00:40]}  b5 {[%clk 0:02:07]} 26. Rd4 {[%clk 0:00:38]}  Be6 {[%clk 0:02:06]} 27. Rfd1 {[%clk 0:00:37]}  Rxd4 {[%clk 0:02:07]} 28. Rxd4 {[%clk 0:00:38]}  b4 {[%clk 0:02:03]} 29. Rd6 {[%clk 0:00:37]}  Rc8 {[%clk 0:02:00]} 30. Qb6 {[%clk 0:00:35]}  Re8 {[%clk 0:01:57]} 31. Rc6 {[%clk 0:00:32]}  gxf4 {[%clk 0:01:55]} 32. Rc7 {[%clk 0:00:28]}  Bf7 {[%clk 0:01:52]} 33. Qxg6+ {[%clk 0:00:27]}  Bxg6 {[%clk 0:01:52]} 34. Rg7+ {[%clk 0:00:28]}  Kf8 {[%clk 0:01:53]} 35. Rxg6 {[%clk 0:00:29]}  Rxe5 {[%clk 0:01:53]} 36. gxf4 {[%clk 0:00:24]}  Ra5 {[%clk 0:01:52]} 37. Rxh6 {[%clk 0:00:23]}  Rxa2 {[%clk 0:01:50]} 38. Rf6+ {[%clk 0:00:23]}  Ke7 {[%clk 0:01:50]} 39. Rxf5 {[%clk 0:00:24]}  Rxb2 {[%clk 0:01:50]} 40. Re5+ {[%clk 0:00:24]}  Kf6 {[%clk 0:01:50]} 41. Rxe4 {[%clk 0:00:25]}  c3 {[%clk 0:01:51]} 42. Kf1 {[%clk 0:00:18]}  c2 {[%clk 0:01:51]} 0-1


[Site "https://www.chess.com"]

[Event "Titled Tuesday Blitz May 9 Late 2023"]
[White "Skaric, Djuro"]
[Black "Abdi, Farzad"]
[WhiteFideId "934569"]
[BlackFideId "2076829"]
[WhiteElo "2282"]
[BlackElo "2265"]
[Result "0-1"]
[Round "10"]
[TimeControl "180+2"]
[Date "2023.05.09"]
[WhiteClock "0:01:22"]
[BlackClock "0:00:39"]

1. g3 {[%clk 0:03:00]}  d5 {[%clk 0:02:58]} 2. Bg2 {[%clk 0:03:01]}  c5 {[%clk 0:02:58]} 3. d3 {[%clk 0:03:02]}  Nc6 {[%clk 0:02:58]} 4. Nf3 {[%clk 0:03:03]}  e5 {[%clk 0:02:57]} 5. O-O {[%clk 0:03:02]}  f6 {[%clk 0:02:57]} 6. Nc3 {[%clk 0:03:02]}  Be6 {[%clk 0:02:57]} 7. e4 {[%clk 0:03:02]}  d4 {[%clk 0:02:56]} 8. Ne2 {[%clk 0:03:02]}  Bd6 {[%clk 0:02:56]} 9. Nd2 {[%clk 0:03:00]}  Nge7 {[%clk 0:02:56]} 10. f4 {[%clk 0:03:00]}  Qd7 {[%clk 0:02:55]} 11. a4 {[%clk 0:02:59]}  O-O {[%clk 0:02:47]} 12. f5 {[%clk 0:02:57]}  Bf7 {[%clk 0:02:46]} 13. b3 {[%clk 0:02:57]}  b6 {[%clk 0:02:44]} 14. g4 {[%clk 0:02:57]}  h6 {[%clk 0:02:41]} 15. h4 {[%clk 0:02:57]}  a6 {[%clk 0:02:39]} 16. Rf2 {[%clk 0:02:54]}  b5 {[%clk 0:02:39]} 17. axb5 {[%clk 0:02:53]}  axb5 {[%clk 0:02:39]} 18. Rxa8 {[%clk 0:02:54]}  Rxa8 {[%clk 0:02:38]} 19. Bf1 {[%clk 0:02:53]}  c4 {[%clk 0:02:37]} 20. bxc4 {[%clk 0:02:52]}  bxc4 {[%clk 0:02:36]} 21. Rg2 {[%clk 0:02:53]}  cxd3 {[%clk 0:02:23]} 22. cxd3 {[%clk 0:02:52]}  Nb4 {[%clk 0:02:23]} 23. Ng3 {[%clk 0:02:51]}  Ra1 {[%clk 0:02:11]} 24. Nb3 {[%clk 0:02:48]}  Rb1 {[%clk 0:02:03]} 25. Rb2 {[%clk 0:02:47]}  Rxb2 {[%clk 0:01:58]} 26. Bxb2 {[%clk 0:02:47]}  Qa4 {[%clk 0:01:51]} 27. Be2 {[%clk 0:02:40]}  Qxb3 {[%clk 0:01:46]} 28. Qa1 {[%clk 0:02:28]}  Nxd3 {[%clk 0:01:35]} 29. Qa8+ {[%clk 0:02:26]}  Bb8 {[%clk 0:01:28]} 30. Ba3 {[%clk 0:02:23]}  Nf4 {[%clk 0:01:21]} 31. Bf3 {[%clk 0:02:03]}  Nc6 {[%clk 0:01:07]} 32. Qxc6 {[%clk 0:01:56]}  Qxf3 {[%clk 0:01:04]} 33. Qc2 {[%clk 0:01:48]}  Qxg3+ {[%clk 0:01:03]} 34. Kf1 {[%clk 0:01:48]}  Qxa3 {[%clk 0:00:56]} 35. g5 {[%clk 0:01:42]}  Qf3+ {[%clk 0:00:51]} 36. Kg1 {[%clk 0:01:41]}  Ne2+ {[%clk 0:00:46]} 37. Qxe2 {[%clk 0:01:36]}  Qxe2 {[%clk 0:00:46]} 38. g6 {[%clk 0:01:34]}  Bc4 {[%clk 0:00:40]} 39. h5 {[%clk 0:01:34]}  d3 {[%clk 0:00:39]} 40. Kh1 {[%clk 0:01:22]}  d2 {[%clk 0:00:39]} 0-1


[Site "https://www.chess.com"]

[Event "Titled Tuesday Blitz May 9 Late 2023"]
[White "Almedina Ortiz, Edgardo J."]
[Black "Ingunza Curro, Andres"]
[WhiteFideId "3100197"]
[BlackFideId "24526371"]
[WhiteElo "2217"]
[BlackElo "2247"]
[Result "0-1"]
[Round "10"]
[TimeControl "180+2"]
[Date "2023.05.09"]
[WhiteClock "0:00:00"]
[BlackClock "0:00:18"]

1. d4 {[%clk 0:03:00]}  Nf6 {[%clk 0:02:59]} 2. c4 {[%clk 0:02:59]}  e6 {[%clk 0:02:58]} 3. Nc3 {[%clk 0:02:57]}  Bb4 {[%clk 0:02:57]} 4. Qc2 {[%clk 0:02:58]}  O-O {[%clk 0:02:56]} 5. Bg5 {[%clk 0:02:57]}  b6 {[%clk 0:02:51]} 6. Nf3 {[%clk 0:02:50]}  h6 {[%clk 0:02:50]} 7. Bxf6 {[%clk 0:02:45]}  Qxf6 {[%clk 0:02:49]} 8. a3 {[%clk 0:02:45]}  Bxc3+ {[%clk 0:02:49]} 9. Qxc3 {[%clk 0:02:45]}  Bb7 {[%clk 0:02:49]} 10. g3 {[%clk 0:02:37]}  c5 {[%clk 0:02:44]} 11. Rd1 {[%clk 0:02:26]}  cxd4 {[%clk 0:02:36]} 12. Qxd4 {[%clk 0:02:25]}  Qxd4 {[%clk 0:02:25]} 13. Rxd4 {[%clk 0:02:26]}  d5 {[%clk 0:02:25]} 14. cxd5 {[%clk 0:02:07]}  Bxd5 {[%clk 0:02:24]} 15. Bg2 {[%clk 0:02:04]}  Nc6 {[%clk 0:02:22]} 16. Rd2 {[%clk 0:02:02]}  Na5 {[%clk 0:02:18]} 17. O-O {[%clk 0:01:59]}  Rac8 {[%clk 0:02:17]} 18. Ne5 {[%clk 0:01:48]}  Nb3 {[%clk 0:02:05]} 19. Rd3 {[%clk 0:01:43]}  Bxg2 {[%clk 0:02:03]} 20. Kxg2 {[%clk 0:01:42]}  Nc5 {[%clk 0:02:03]} 21. Rc3 {[%clk 0:01:15]}  f6 {[%clk 0:01:47]} 22. Ng6 {[%clk 0:01:03]}  Rfe8 {[%clk 0:01:45]} 23. b4 {[%clk 0:01:02]}  Kh7 {[%clk 0:01:38]} 24. Nf4 {[%clk 0:00:59]}  Ne4 {[%clk 0:01:21]} 25. Rxc8 {[%clk 0:00:55]}  Rxc8 {[%clk 0:01:22]} 26. Nxe6 {[%clk 0:00:54]}  Rc3 {[%clk 0:01:22]} 27. f3 {[%clk 0:00:43]}  Nd6 {[%clk 0:01:19]} 28. Rd1 {[%clk 0:00:40]}  Nc4 {[%clk 0:01:19]} 29. Rd7 {[%clk 0:00:39]}  Rxa3 {[%clk 0:01:17]} 30. Rxg7+ {[%clk 0:00:35]}  Kh8 {[%clk 0:01:18]} 31. Rc7 {[%clk 0:00:32]}  Ne3+ {[%clk 0:01:08]} 32. Kf2 {[%clk 0:00:31]}  Nd5 {[%clk 0:01:04]} 33. Rd7 {[%clk 0:00:26]}  Nxb4 {[%clk 0:01:02]} 34. Nf4 {[%clk 0:00:20]}  a5 {[%clk 0:01:00]} 35. h4 {[%clk 0:00:20]}  a4 {[%clk 0:00:49]} 36. Nh5 {[%clk 0:00:20]}  Kg8 {[%clk 0:00:43]} 37. Nxf6+ {[%clk 0:00:20]}  Kf8 {[%clk 0:00:43]} 38. Rb7 {[%clk 0:00:15]}  Ra2 {[%clk 0:00:34]} 39. Rxb6 {[%clk 0:00:14]}  Nd3+ {[%clk 0:00:34]} 40. Ke3 {[%clk 0:00:13]}  Ne5 {[%clk 0:00:32]} 41. Rb7 {[%clk 0:00:11]}  Nc4+ {[%clk 0:00:31]} 42. Kd3 {[%clk 0:00:09]}  Ne5+ {[%clk 0:00:31]} 43. Ke3 {[%clk 0:00:09]}  Nc4+ {[%clk 0:00:32]} 44. Kf4 {[%clk 0:00:08]}  a3 {[%clk 0:00:26]} 45. e4 {[%clk 0:00:07]}  Rf2 {[%clk 0:00:23]} 46. Ra7 {[%clk 0:00:05]}  a2 {[%clk 0:00:22]} 47. Ng4 {[%clk 0:00:03]}  Rb2 {[%clk 0:00:22]} 48. Nxh6 {[%clk 0:00:00]}  Nd2 {[%clk 0:00:18]} 0-1


[Site "https://www.chess.com"]

[Event "Titled Tuesday Blitz May 9 Late 2023"]
[White "Chessadiction1990"]
[Black "Celestino, Rafael Teixeira"]
[BlackFideId "2108925"]
[WhiteElo "2146"]
[BlackElo "2306"]
[Result "0-1"]
[Round "10"]
[TimeControl "180+2"]
[Date "2023.05.09"]
[WhiteClock "0:00:00"]
[BlackClock "0:01:05"]

1. d4 {[%clk 0:03:00]}  Nf6 {[%clk 0:02:58]} 2. Nc3 {[%clk 0:03:00]}  e6 {[%clk 0:02:58]} 3. Bf4 {[%clk 0:02:58]}  Bb4 {[%clk 0:02:58]} 4. Nf3 {[%clk 0:02:45]}  c5 {[%clk 0:02:57]} 5. dxc5 {[%clk 0:02:39]}  O-O {[%clk 0:02:55]} 6. Bd6 {[%clk 0:02:24]}  Re8 {[%clk 0:02:55]} 7. Qd3 {[%clk 0:02:21]}  Qa5 {[%clk 0:02:50]} 8. e3 {[%clk 0:02:01]}  Nd5 {[%clk 0:02:30]} 9. Be5 {[%clk 0:01:42]}  Nc6 {[%clk 0:02:18]} 10. Rd1 {[%clk 0:00:56]}  Nxe5 {[%clk 0:02:06]} 11. Nxe5 {[%clk 0:00:56]}  Nxc3 {[%clk 0:02:06]} 12. Nc4 {[%clk 0:00:56]}  Nxd1+ {[%clk 0:01:48]} 13. Kxd1 {[%clk 0:00:56]}  Qxc5 {[%clk 0:01:43]} 14. a3 {[%clk 0:00:47]}  d5 {[%clk 0:01:38]} 15. Ne5 {[%clk 0:00:20]}  Ba5 {[%clk 0:01:37]} 16. b4 {[%clk 0:00:20]}  Qc7 {[%clk 0:01:37]} 17. f4 {[%clk 0:00:14]}  Bb6 {[%clk 0:01:35]} 18. Be2 {[%clk 0:00:13]}  d4 {[%clk 0:01:23]} 19. Rf1 {[%clk 0:00:12]}  dxe3 {[%clk 0:01:22]} 20. Kc1 {[%clk 0:00:12]}  Rd8 {[%clk 0:01:19]} 21. Qe4 {[%clk 0:00:12]}  a5 {[%clk 0:01:13]} 22. Bd3 {[%clk 0:00:12]}  f5 {[%clk 0:01:11]} 23. Qf3 {[%clk 0:00:11]}  axb4 {[%clk 0:01:11]} 24. g4 {[%clk 0:00:00]}  Qc3 {[%clk 0:01:05]} 0-1


[Site "https://www.chess.com"]

[Event "Titled Tuesday Blitz May 9 Late 2023"]
[White "Joubert, Dantelle"]
[Black "Romero Ruscalleda, Josep"]
[WhiteFideId "14310813"]
[BlackFideId "2231859"]
[WhiteElo "1507"]
[BlackElo "2183"]
[Result "0-1"]
[Round "10"]
[TimeControl "180+2"]
[Date "2023.05.09"]
[WhiteClock "0:00:00"]
[BlackClock "0:01:27"]

1. d4 {[%clk 0:02:58]}  g6 {[%clk 0:03:00]} 2. e4 {[%clk 0:02:57]}  Bg7 {[%clk 0:03:01]} 3. Nc3 {[%clk 0:02:57]}  d6 {[%clk 0:03:02]} 4. Be3 {[%clk 0:02:56]}  a6 {[%clk 0:03:02]} 5. Qd2 {[%clk 0:02:55]}  b5 {[%clk 0:03:02]} 6. f3 {[%clk 0:02:54]}  Bb7 {[%clk 0:03:01]} 7. O-O-O {[%clk 0:02:53]}  Nd7 {[%clk 0:03:01]} 8. Bd3 {[%clk 0:02:49]}  Rc8 {[%clk 0:03:01]} 9. Kb1 {[%clk 0:02:41]}  c5 {[%clk 0:03:01]} 10. d5 {[%clk 0:02:28]}  b4 {[%clk 0:02:51]} 11. Nce2 {[%clk 0:02:16]}  c4 {[%clk 0:02:51]} 12. Qxb4 {[%clk 0:02:15]}  cxd3 {[%clk 0:02:51]} 13. cxd3 {[%clk 0:02:01]}  Ba8 {[%clk 0:02:48]} 14. d4 {[%clk 0:01:51]}  Ngf6 {[%clk 0:02:45]} 15. h4 {[%clk 0:01:49]}  h5 {[%clk 0:02:39]} 16. Nh3 {[%clk 0:01:42]}  Rb8 {[%clk 0:02:35]} 17. Qd2 {[%clk 0:01:40]}  Qb6 {[%clk 0:02:29]} 18. e5 {[%clk 0:01:36]}  Nxd5 {[%clk 0:02:25]} 19. Bg5 {[%clk 0:01:24]}  Qb4 {[%clk 0:02:08]} 20. exd6 {[%clk 0:01:05]}  Qxd6 {[%clk 0:02:04]} 21. Nhf4 {[%clk 0:01:03]}  O-O {[%clk 0:02:01]} 22. g4 {[%clk 0:00:54]}  Nxf4 {[%clk 0:01:46]} 23. Bxf4 {[%clk 0:00:53]}  e5 {[%clk 0:01:39]} 24. dxe5 {[%clk 0:00:30]}  Qxd2 {[%clk 0:01:37]} 25. Rxd2 {[%clk 0:00:30]}  Nxe5 {[%clk 0:01:37]} 26. gxh5 {[%clk 0:00:22]}  Nxf3 {[%clk 0:01:29]} 27. Bxb8 {[%clk 0:00:08]}  Nxd2+ {[%clk 0:01:28]} 28. Kc2 {[%clk 0:00:08]}  Bxh1 {[%clk 0:01:27]} 29. Kxd2 {[%clk 0:00:00]}  Rxb8 {[%clk 0:01:27]} 0-1


[Site "https://www.chess.com"]

[Event "Titled Tuesday Blitz May 9 Late 2023"]
[White "Zampronha, Wladimir Camilo"]
[Black "Tarnowska, Aleksandra"]
[WhiteFideId "2103087"]
[BlackFideId "1180967"]
[WhiteElo "2176"]
[BlackElo "1776"]
[Result "1-0"]
[Round "10"]
[TimeControl "180+2"]
[Date "2023.05.09"]
[WhiteClock "0:01:14"]
[BlackClock "0:00:00"]

1. e4 {[%clk 0:03:00]}  c5 {[%clk 0:02:59]} 2. Nf3 {[%clk 0:03:00]}  e6 {[%clk 0:03:00]} 3. d4 {[%clk 0:03:01]}  cxd4 {[%clk 0:03:00]} 4. Nxd4 {[%clk 0:03:01]}  a6 {[%clk 0:02:58]} 5. Bd3 {[%clk 0:02:59]}  Bc5 {[%clk 0:02:51]} 6. Nb3 {[%clk 0:02:58]}  Be7 {[%clk 0:02:50]} 7. Qg4 {[%clk 0:02:55]}  g6 {[%clk 0:02:50]} 8. Qe2 {[%clk 0:02:56]}  d6 {[%clk 0:02:49]} 9. O-O {[%clk 0:02:56]}  Nd7 {[%clk 0:02:48]} 10. Na3 {[%clk 0:02:48]}  b5 {[%clk 0:02:32]} 11. c4 {[%clk 0:02:44]}  b4 {[%clk 0:02:28]} 12. Nc2 {[%clk 0:02:43]}  a5 {[%clk 0:02:12]} 13. Nbd4 {[%clk 0:02:43]}  Qc7 {[%clk 0:02:06]} 14. Nb5 {[%clk 0:02:41]}  Qc6 {[%clk 0:02:00]} 15. Ncd4 {[%clk 0:02:36]}  Bb7 {[%clk 0:01:58]} 16. Nxc6 {[%clk 0:02:35]}  Bxc6 {[%clk 0:01:57]} 17. Nc7+ {[%clk 0:02:34]}  Kd8 {[%clk 0:01:21]} 18. Nxa8 {[%clk 0:02:35]}  Bxa8 {[%clk 0:01:20]} 19. f4 {[%clk 0:02:24]}  Ngf6 {[%clk 0:01:20]} 20. a3 {[%clk 0:02:18]}  b3 {[%clk 0:01:15]} 21. Bd2 {[%clk 0:02:12]}  Nc5 {[%clk 0:01:02]} 22. Bxa5+ {[%clk 0:02:06]}  Kd7 {[%clk 0:01:03]} 23. Bc3 {[%clk 0:02:03]}  Nxd3 {[%clk 0:01:00]} 24. Qxd3 {[%clk 0:02:03]}  Bxe4 {[%clk 0:01:00]} 25. Bxf6 {[%clk 0:01:44]}  Bxd3 {[%clk 0:00:58]} 26. Bxh8 {[%clk 0:01:43]}  Bxc4 {[%clk 0:00:51]} 27. Bc3 {[%clk 0:01:42]}  d5 {[%clk 0:00:51]} 28. a4 {[%clk 0:01:40]}  Kc6 {[%clk 0:00:47]} 29. a5 {[%clk 0:01:40]}  Bc5+ {[%clk 0:00:47]} 30. Kh1 {[%clk 0:01:39]}  Ba6 {[%clk 0:00:41]} 31. Rfd1 {[%clk 0:01:36]}  h5 {[%clk 0:00:36]} 32. Bd4 {[%clk 0:01:35]}  Bd6 {[%clk 0:00:33]} 33. g3 {[%clk 0:01:34]}  Be7 {[%clk 0:00:24]} 34. Kg2 {[%clk 0:01:32]}  h4 {[%clk 0:00:22]} 35. Kh3 {[%clk 0:01:27]}  Be2 {[%clk 0:00:03]} 36. a6 {[%clk 0:01:17]}  f6 {[%clk 0:00:01]} 37. a7 {[%clk 0:01:17]}  g5 {[%clk 0:00:01]} 38. fxg5 {[%clk 0:01:15]}  fxg5 {[%clk 0:00:00]} 39. g4 {[%clk 0:01:14]} 1-0


[Site "https://www.chess.com"]

[Event "Titled Tuesday Blitz May 9 Late 2023"]
[White "Chemin, Justo Reinaldo"]
[Black "Dargan, Paul A G"]
[WhiteFideId "2101580"]
[BlackFideId "416762"]
[WhiteElo "1940"]
[BlackElo "2042"]
[Result "0-1"]
[Round "10"]
[TimeControl "180+2"]
[Date "2023.05.09"]
[WhiteClock "0:00:00"]
[BlackClock "0:01:19"]

1. e4 {[%clk 0:03:00]}  d5 {[%clk 0:03:00]} 2. exd5 {[%clk 0:03:00]}  Nf6 {[%clk 0:02:59]} 3. d4 {[%clk 0:02:58]}  Qxd5 {[%clk 0:02:54]} 4. Nc3 {[%clk 0:02:55]}  Qd6 {[%clk 0:02:52]} 5. Nf3 {[%clk 0:02:48]}  Bg4 {[%clk 0:02:51]} 6. Be2 {[%clk 0:02:38]}  Nc6 {[%clk 0:02:51]} 7. Be3 {[%clk 0:02:34]}  O-O-O {[%clk 0:02:47]} 8. O-O {[%clk 0:02:25]}  e5 {[%clk 0:02:35]} 9. dxe5 {[%clk 0:02:14]}  Qxd1 {[%clk 0:02:28]} 10. Raxd1 {[%clk 0:02:09]}  Bxf3 {[%clk 0:02:28]} 11. Rxd8+ {[%clk 0:02:05]}  Kxd8 {[%clk 0:02:27]} 12. Bxf3 {[%clk 0:02:04]}  Nxe5 {[%clk 0:02:24]} 13. Bxb7 {[%clk 0:02:03]}  Bb4 {[%clk 0:02:22]} 14. Rd1+ {[%clk 0:02:03]}  Ke7 {[%clk 0:02:21]} 15. Bxa7 {[%clk 0:01:53]}  Bxc3 {[%clk 0:02:19]} 16. bxc3 {[%clk 0:01:45]}  Nc4 {[%clk 0:02:18]} 17. Bc5+ {[%clk 0:01:39]}  Nd6 {[%clk 0:02:18]} 18. a4 {[%clk 0:01:33]}  Rb8 {[%clk 0:02:17]} 19. Bc6 {[%clk 0:01:30]}  Rb2 {[%clk 0:02:15]} 20. Re1+ {[%clk 0:01:21]}  Kd8 {[%clk 0:02:15]} 21. a5 {[%clk 0:01:15]}  Nd7 {[%clk 0:02:12]} 22. Bb4 {[%clk 0:01:05]}  Rxc2 {[%clk 0:02:02]} 23. Ra1 {[%clk 0:00:59]}  Nb8 {[%clk 0:02:00]} 24. Bd5 {[%clk 0:00:50]}  f6 {[%clk 0:01:51]} 25. h4 {[%clk 0:00:45]}  Na6 {[%clk 0:01:45]} 26. Bxd6 {[%clk 0:00:26]}  cxd6 {[%clk 0:01:44]} 27. Bc4 {[%clk 0:00:24]}  Nc7 {[%clk 0:01:41]} 28. a6 {[%clk 0:00:24]}  Rxc3 {[%clk 0:01:41]} 29. Bf1 {[%clk 0:00:20]}  Kc8 {[%clk 0:01:35]} 30. Rb1 {[%clk 0:00:08]}  Ra3 {[%clk 0:01:33]} 31. Rb6 {[%clk 0:00:08]}  d5 {[%clk 0:01:31]} 32. g4 {[%clk 0:00:03]}  d4 {[%clk 0:01:28]} 33. Rd6 {[%clk 0:00:00]}  Ra4 {[%clk 0:01:19]} 0-1


[Site "https://www.chess.com"]

[Event "Titled Tuesday Blitz May 9 Late 2023"]
[White "Escalante Ramirez, Rafael"]
[Black "Hartikainen, Jarmo"]
[WhiteFideId "3900177"]
[BlackFideId "503134"]
[WhiteElo "2184"]
[BlackElo "2091"]
[Result "1/2-1/2"]
[Round "10"]
[TimeControl "180+2"]
[Date "2023.05.09"]
[WhiteClock "0:00:04"]
[BlackClock "0:00:11"]

1. Nf3 {[%clk 0:02:57]}  Nf6 {[%clk 0:02:59]} 2. d4 {[%clk 0:02:56]}  g6 {[%clk 0:02:57]} 3. c4 {[%clk 0:02:56]}  Bg7 {[%clk 0:02:56]} 4. g3 {[%clk 0:02:56]}  d5 {[%clk 0:02:55]} 5. cxd5 {[%clk 0:02:55]}  Nxd5 {[%clk 0:02:55]} 6. Bg2 {[%clk 0:02:55]}  O-O {[%clk 0:02:55]} 7. O-O {[%clk 0:02:54]}  c5 {[%clk 0:02:48]} 8. e4 {[%clk 0:02:42]}  Nf6 {[%clk 0:02:39]} 9. Nc3 {[%clk 0:02:37]}  cxd4 {[%clk 0:02:36]} 10. Qxd4 {[%clk 0:02:17]}  Qxd4 {[%clk 0:02:29]} 11. Nxd4 {[%clk 0:02:17]}  Nxe4 {[%clk 0:02:29]} 12. Bxe4 {[%clk 0:01:57]}  Bxd4 {[%clk 0:02:28]} 13. Nb5 {[%clk 0:01:57]}  Bb6 {[%clk 0:02:25]} 14. Bh6 {[%clk 0:01:46]}  Re8 {[%clk 0:02:06]} 15. Rac1 {[%clk 0:01:46]}  Bh3 {[%clk 0:01:57]} 16. Rfd1 {[%clk 0:01:27]}  Nc6 {[%clk 0:01:35]} 17. Bxc6 {[%clk 0:01:05]}  bxc6 {[%clk 0:01:34]} 18. Rxc6 {[%clk 0:01:04]}  Rad8 {[%clk 0:01:29]} 19. Rdc1 {[%clk 0:00:59]}  Bd7 {[%clk 0:01:23]} 20. Rxb6 {[%clk 0:00:56]}  axb6 {[%clk 0:01:24]} 21. Nc7 {[%clk 0:00:56]}  f6 {[%clk 0:01:03]} 22. Nxe8 {[%clk 0:00:51]}  Bxe8 {[%clk 0:01:03]} 23. Be3 {[%clk 0:00:45]}  b5 {[%clk 0:01:01]} 24. f3 {[%clk 0:00:40]}  Kf7 {[%clk 0:01:01]} 25. Kf2 {[%clk 0:00:40]}  Ra8 {[%clk 0:00:57]} 26. a3 {[%clk 0:00:39]}  Rb8 {[%clk 0:00:53]} 27. Rc7 {[%clk 0:00:28]}  b4 {[%clk 0:00:39]} 28. Bc5 {[%clk 0:00:25]}  bxa3 {[%clk 0:00:37]} 29. Rxe7+ {[%clk 0:00:23]}  Kg8 {[%clk 0:00:35]} 30. Bxa3 {[%clk 0:00:19]}  Bf7 {[%clk 0:00:31]} 31. Rc7 {[%clk 0:00:18]}  h5 {[%clk 0:00:24]} 32. h4 {[%clk 0:00:17]}  Rb3 {[%clk 0:00:20]} 33. Rc6 {[%clk 0:00:14]}  Kg7 {[%clk 0:00:16]} 34. Ra6 {[%clk 0:00:11]}  g5 {[%clk 0:00:13]} 35. hxg5 {[%clk 0:00:09]}  fxg5 {[%clk 0:00:13]} 36. Ra7 {[%clk 0:00:08]}  Kg6 {[%clk 0:00:13]} 37. Ra6+ {[%clk 0:00:07]}  Kg7 {[%clk 0:00:14]} 38. Kg2 {[%clk 0:00:06]}  Bg6 {[%clk 0:00:11]} 39. Ra7+ {[%clk 0:00:05]}  Bf7 {[%clk 0:00:11]} 40. Kf2 {[%clk 0:00:04]}  Kg6 {[%clk 0:00:11]} 41. Ra6+ {[%clk 0:00:04]}  Kg7 {[%clk 0:00:11]} 1/2-1/2


[Site "https://www.chess.com"]